fUSD/lending_fUSD_20240614
["ID","MTS","AMOUNT","RATE_DAILY","PERIOD"]
[329489064,1718391061035,-500.0,0.00021917,2]
[329489065,1718391061061,-3449.65,0.00021917,2]
[329489066,1718391061073,-500.0,0.00021917,2]
[329489067,1718391061100,-500.0,0.00021917,2]
[329489068,1718391061119,-500.0,0.00021917,2]
[329489069,1718391061143,-997.58,0.00021917,2]
[329489070,1718391061155,-500.0,0.00021917,2]
[329489071,1718391061167,-500.0,0.00021917,2]
[329489072,1718391061179,-500.0,0.00021917,2]
[329489073,1718391061193,-500.0,0.00021917,2]
[329489074,1718391061218,-500.0,0.00021917,2]
[329489075,1718391061229,-500.0,0.00021917,2]
[329489076,1718391061241,-500.0,0.00021917,2]
[329489077,1718391061261,-1730.18,0.00021917,2]
[329489078,1718391061278,-2247.87,0.00021917,2]
[329489079,1718391061297,-500.0,0.00021917,2]
[329489080,1718391061318,-500.0,0.00021917,2]
[329489081,1718391061332,-500.0,0.00021917,2]
[329489082,1718391061348,-1843.05,0.00021917,2]
[329489083,1718391061379,-500.0,0.00021917,2]
[329489084,1718391061401,-1435.95,0.00021917,2]
[329489085,1718391061425,-500.0,0.00021917,2]
[329489086,1718391061463,-500.0,0.00021917,2]
[329489087,1718391061493,-500.0,0.00021917,2]
[329489088,1718391061508,-500.0,0.00021917,2]
[329489089,1718391061525,-500.0,0.00021917,2]
[329489090,1718391061549,-500.0,0.00021917,2]
[329489091,1718391061564,-23041.98,0.00021917,2]
[329489092,1718391061576,-775.47,0.00021917,2]
[329489093,1718391061592,-500.0,0.00021917,2]
[329489094,1718391061612,-500.0,0.00021917,2]
[329489095,1718391061625,-500.0,0.00021917,2]
[329489096,1718391061637,-9836.95,0.00021917,2]
[329489097,1718391061650,-2112.68,0.00021917,2]
[329489098,1718391061665,-542.80590889,0.00021917,2]
[329489099,1718391061679,-1080.33,0.00021917,2]
[329489100,1718391061692,-545.95191036,0.00021917,2]
[329489101,1718391061718,-500.0,0.00021917,2]
[329489102,1718391061738,-500.0,0.00021917,2]
[329489103,1718391061755,-877.99,0.00021917,2]
[329489104,1718391061788,-500.0,0.00021917,2]
[329489105,1718391061799,-500.0,0.00021917,2]
[329489106,1718391061827,-500.0,0.00021917,2]
[329489107,1718391061853,-943.94,0.00021917,2]
[329489108,1718391061868,-565.53991825,0.00021917,2]
[329489109,1718391061889,-1030.33,0.00021917,2]
[329489110,1718391061908,-500.0,0.00021917,2]
[329489111,1718391061969,-1458.53,0.00021917,2]
[329489112,1718391061990,-500.0,0.00021917,2]
[329489113,1718391062003,-500.0,0.00021917,2]
[329489114,1718391062025,-896.65,0.00021917,2]
[329489115,1718391062048,-499.59095551,0.00021917,2]
[329489116,1718391062069,-500.0,0.00021917,2]
[329489117,1718391062098,-962.9,0.00021917,2]
[329489118,1718391062123,-707.69,0.00021917,2]
[329489119,1718391062153,-631.9,0.00021917,2]
[329489120,1718391062192,-776.36,0.00021917,2]
[329489121,1718391062206,-8903.73,0.00021917,2]
[329489122,1718391062279,-500.0,0.00021917,2]
[329489123,1718391062318,-500.0,0.00021917,2]
[329489124,1718391062336,-500.0,0.00021917,2]
[329489125,1718391062357,-500.0,0.00021917,2]
[329489126,1718391062381,-500.0,0.00021917,2]
[329489127,1718391062395,-1481.84,0.00021917,2]
[329489128,1718391062417,-500.0,0.00021917,2]
[329489129,1718391062434,-1510.07,0.00021917,2]
[329489130,1718391062450,-500.0,0.00021917,2]
[329489131,1718391062476,-500.0,0.00021917,2]
[329489132,1718391062502,-500.0,0.00021917,2]
[329489133,1718391062527,-1196.91,0.00021917,2]
[329489134,1718391062545,-2835.88,0.00021917,2]
[329489135,1718391062581,-3592.35,0.00021917,2]
[329489136,1718391062592,-500.0,0.00021917,2]
[329489137,1718391062615,-1753.97,0.00021917,2]
[329489138,1718391062639,-500.0,0.00021917,2]
[329489139,1718391062660,-500.0,0.00021917,2]
[329489140,1718391062695,-500.0,0.00021917,2]
[329489141,1718391062740,-530.6564147,0.00021917,2]
[329489142,1718391062765,-6318.35,0.00021917,2]
[329489143,1718391062802,-2118.45,0.00021917,2]
[329489144,1718391062820,-500.0,0.00021917,2]
[329489145,1718391062836,-756.69,0.00021917,2]
[329489146,1718391062863,-182.21963135,0.00021917,2]
[329489147,1718391062914,-500.0,0.00021917,2]
[329489148,1718391062937,-10351.74,0.00021917,2]
[329489149,1718391062953,-1145.68,0.00021917,2]
[329489150,1718391062968,-500.0,0.00021917,2]
[329489151,1718391063025,-500.0,0.00021917,2]
[329489152,1718391063038,-500.0,0.00021917,2]
[329489153,1718391063079,-778.85,0.00021917,2]
[329489154,1718391063092,-4520.85,0.00021917,2]
[329489155,1718391063103,-6900.79,0.00021917,2]
[329489156,1718391063115,-3747.1,0.00021917,2]
[329489157,1718391063126,-500.0,0.00021917,2]
[329489158,1718391063138,-500.0,0.00021917,2]
[329489159,1718391063150,-500.0,0.00021917,2]
[329489160,1718391063163,-500.0,0.00021917,2]
[329489161,1718391063191,-1394.79,0.00021917,2]
[329489162,1718391063206,-821.26,0.00021917,2]
[329489163,1718391063221,-1088.84,0.00021917,2]
[329489164,1718391063239,-500.0,0.00021917,2]
[329489165,1718391063254,-500.0,0.00021917,2]
[329489166,1718391063267,-500.0,0.00021917,2]
[329489167,1718391063304,-500.0,0.00021917,2]
[329489168,1718391063328,-4458.97,0.00021917,2]
[329489169,1718391063340,-500.0,0.00021917,2]
[329489170,1718391063360,-1772.91,0.00021917,2]
[329489171,1718391063372,-500.0,0.00021917,2]
[329489172,1718391063386,-726.01,0.00021917,2]
[329489173,1718391063405,-151.0,0.00021917,2]
[329489174,1718391063419,-223.83419394,0.00021917,2]
[329489175,1718391063450,-500.0,0.00021917,2]
[329489176,1718391063470,-1108.5,0.00021917,2]
[329489177,1718391063482,-500.0,0.00021917,2]
[329489178,1718391063533,-504.27,0.00021918,2]
[329489179,1718391063560,-278.58,0.00021918,2]
[329489180,1718391063573,-250.0,0.00021918,2]
[329489181,1718391063584,-1551.39,0.00022,2]
[329489182,1718391063596,-1989.03027427,0.00022,10]
[329489183,1718391063617,-791.3078282,0.00022,2]
[329489184,1718391063632,-2000.0,0.00022,2]
[329489185,1718391063645,-2000.0,0.0002201,2]
[329489186,1718391063673,-152.31490757,0.0002201,2]
[329489187,1718391063688,-2000.0,0.0002202,2]
[329489188,1718391063741,-2000.0,0.0002203,2]
[329489189,1718391063765,-2824.788897,0.0002204,2]
[329489190,1718391063788,-300.0,0.00022091,2]
[329489191,1718391063801,-270.67846848,0.00022091,2]
[329489192,1718391063831,-155.0,0.0002219,2]
[329489193,1718391063846,-151.0,0.0002219,7]
[329489194,1718391063872,-1459.76,0.0002219,3]
[329489195,1718391063884,-1459.76,0.0002219,3]
[329489196,1718391063900,-500.0,0.00022191,3]
[329489197,1718391063913,-500.0,0.00022191,3]
[329489198,1718391063928,-500.0,0.00022191,3]
[329489199,1718391063942,-500.0,0.00022191,3]
[329489200,1718391063958,-500.0,0.00022191,3]
[329489201,1718391063970,-380.06341644,0.00022191,3]
[329489202,1718391063981,-500.0,0.00022191,3]
[329489203,1718391064004,-500.0,0.00022191,3]
[329489204,1718391064035,-550.39304231,0.00022191,3]
[329489205,1718391064068,-500.0,0.00022191,3]
[329489206,1718391064080,-500.0,0.00022191,3]
[329489207,1718391064117,-500.0,0.00022191,3]
[329489208,1718391064130,-500.0,0.00022191,3]
[329489209,1718391064141,-500.0,0.00022191,3]
[329489210,1718391064165,-500.0,0.00022191,3]
[329489211,1718391064188,-500.0,0.00022191,3]
[329489212,1718391064212,-500.0,0.00022191,3]
[329489213,1718391064224,-500.0,0.00022191,3]
[329489214,1718391064237,-500.0,0.00022191,3]
[329489215,1718391064273,-439.20223746,0.00022191,3]
[329489216,1718391064285,-552.82173836,0.00022191,2]
[329489217,1718391064301,-500.0,0.00022191,3]
[329489218,1718391064320,-500.0,0.00022191,3]
[329489219,1718391064334,-500.0,0.00022191,3]
[329489220,1718391064345,-500.0,0.00022191,3]
[329489221,1718391064356,-500.0,0.00022191,3]
[329489222,1718391064368,-500.0,0.00022191,3]
[329489223,1718391064379,-500.0,0.00022191,3]
[329489224,1718391064400,-500.0,0.00022191,2]
[329489225,1718391064414,-500.0,0.00022191,3]
[329489226,1718391064429,-500.0,0.00022191,3]
[329489227,1718391064445,-500.0,0.00022191,3]
[329489228,1718391064486,-500.0,0.00022191,3]
[329489229,1718391064501,-182.17743041,0.00022191,3]
[329489230,1718391064530,-500.0,0.00022191,3]
[329489231,1718391064554,-624.44673447,0.00022191,3]
[329489232,1718391064612,-500.0,0.00022191,3]
[329489233,1718391064639,-389.93135102,0.00022191,3]
[329489234,1718391064652,-500.0,0.00022191,3]
[329489235,1718391064688,-500.0,0.00022191,3]
[329489236,1718391064700,-500.0,0.00022191,3]
[329489237,1718391064725,-500.0,0.00022191,3]
[329489238,1718391064751,-500.0,0.00022191,3]
[329489239,1718391064775,-445.44731875,0.00022191,3]
[329489240,1718391064789,-500.0,0.00022191,3]
[329489241,1718391064801,-500.0,0.00022191,3]
[329489242,1718391064831,-500.0,0.00022191,3]
[329489243,1718391064844,-500.0,0.00022191,3]
[329489244,1718391064856,-500.0,0.00022191,3]
[329489245,1718391064867,-500.0,0.00022191,3]
[329489246,1718391064890,-500.0,0.00022191,3]
[329489247,1718391064910,-500.0,0.00022191,3]
[329489248,1718391064939,-500.0,0.00022191,3]
[329489249,1718391064954,-520.9,0.00022191,3]
[329489250,1718391064967,-500.0,0.00022191,3]
[329489251,1718391064981,-500.0,0.00022191,3]
[329489252,1718391065002,-500.0,0.00022191,3]
[329489253,1718391065019,-500.0,0.00022191,3]
[329489254,1718391065043,-500.0,0.00022191,3]
[329489255,1718391065055,-500.0,0.00022191,3]
[329489256,1718391065071,-500.0,0.00022191,3]
[329489257,1718391065082,-500.0,0.00022191,3]
[329489258,1718391065095,-500.0,0.00022191,3]
[329489259,1718391065109,-1545.17,0.00022191,3]
[329489260,1718391065122,-500.0,0.00022191,3]
[329489261,1718391065136,-500.0,0.00022191,3]
[329489262,1718391065155,-500.0,0.00022191,3]
[329489263,1718391065170,-500.0,0.00022191,3]
[329489264,1718391065183,-551.41,0.00022191,3]
[329489265,1718391065194,-500.0,0.00022191,3]
[329489266,1718391065216,-515.75,0.00022191,3]
[329489267,1718391065228,-500.0,0.00022191,3]
[329489268,1718391065240,-168.29,0.00022191,3]
[329489269,1718391065253,-500.0,0.00022191,3]
[329489270,1718391065266,-500.0,0.00022191,3]
[329489271,1718391065550,-500.0,0.00022191,3]
[329489272,1718391065581,-500.0,0.00022191,3]
[329489273,1718391065594,-500.0,0.00022191,3]
[329489274,1718391065609,-500.0,0.00022191,3]
[329489275,1718391065640,-500.0,0.00022191,3]
[329489276,1718391065657,-500.0,0.00022191,3]
[329489277,1718391065675,-500.0,0.00022191,3]
[329489278,1718391065693,-250.34,0.00022191,7]
[329489279,1718391065708,-500.0,0.00022191,3]
[329489280,1718391065723,-500.0,0.00022191,3]
[329489281,1718391065736,-500.0,0.00022191,3]
[329489282,1718391065747,-500.0,0.00022191,3]
[329489283,1718391065772,-500.0,0.00022191,3]
[329489284,1718391065801,-538.1,0.00022191,3]
[329489285,1718391065817,-500.0,0.00022191,3]
[329489286,1718391065842,-500.0,0.00022191,3]
[329489287,1718391065853,-500.0,0.00022191,3]
[329489288,1718391065865,-500.0,0.00022191,3]
[329489289,1718391065882,-500.0,0.00022191,3]
[329489290,1718391065895,-500.0,0.00022191,3]
[329489291,1718391065911,-500.0,0.00022191,3]
[329489292,1718391065944,-500.0,0.00022191,3]
[329489293,1718391065982,-500.0,0.00022191,3]
[329489294,1718391065995,-500.0,0.00022191,3]
[329489295,1718391066006,-150.0,0.00022191,3]
[329489296,1718391066034,-500.0,0.00022191,3]
[329489297,1718391066053,-500.0,0.00022191,3]
[329489298,1718391066070,-500.0,0.00022191,3]
[329489299,1718391066095,-500.0,0.00022191,3]
[329489300,1718391066125,-500.0,0.00022191,3]
[329489301,1718391066139,-500.0,0.00022191,3]
[329489302,1718391066151,-500.0,0.00022191,3]
[329489303,1718391066175,-500.0,0.00022191,3]
[329489304,1718391066198,-500.0,0.00022191,3]
[329489305,1718391066216,-500.0,0.00022191,3]
[329489306,1718391066231,-500.0,0.00022191,3]
[329489307,1718391066255,-500.0,0.00022191,3]
[329489308,1718391066269,-500.0,0.00022191,3]
[329489309,1718391066284,-500.0,0.00022191,3]
[329489310,1718391066302,-500.0,0.00022191,3]
[329489311,1718391066326,-500.0,0.00022191,3]
[329489312,1718391066348,-500.0,0.00022191,3]
[329489313,1718391066360,-500.0,0.00022191,3]
[329489314,1718391066372,-500.0,0.00022191,3]
[329489315,1718391066389,-629.06,0.00022191,3]
[329489316,1718391066416,-533.3396302,0.00022191,3]
[329489317,1718391066445,-500.0,0.00022191,3]
[329489318,1718391066476,-700.24,0.00022191,3]
[329489319,1718391066488,-500.0,0.00022191,3]
[329489320,1718391066501,-500.0,0.00022191,3]
[329489321,1718391066514,-500.0,0.00022191,3]
[329489322,1718391066526,-500.0,0.00022191,3]
[329489323,1718391066541,-500.0,0.00022191,3]
[329489324,1718391066556,-500.0,0.00022191,3]
[329489325,1718391066575,-500.0,0.00022191,3]
[329489326,1718391066590,-500.0,0.00022191,2]
[329489327,1718391066614,-500.0,0.00022191,3]
[329489328,1718391066628,-500.0,0.00022191,3]
[329489329,1718391066654,-500.0,0.00022191,3]
[329489330,1718391066665,-500.0,0.00022191,3]
[329489331,1718391066677,-500.0,0.00022191,3]
[329489332,1718391066689,-500.0,0.00022191,3]
[329489333,1718391066701,-500.0,0.00022191,3]
[329489334,1718391066717,-457.59884911,0.00022191,3]
[329489335,1718391066743,-500.0,0.00022191,3]
[329489336,1718391066773,-500.0,0.00022191,3]
[329489337,1718391066836,-500.0,0.00022191,3]
[329489338,1718391066885,-500.0,0.00022191,3]
[329489339,1718391066901,-500.0,0.00022191,3]
[329489340,1718391066913,-500.0,0.00022191,3]
[329489341,1718391066925,-500.0,0.00022191,3]
[329489342,1718391066937,-220.41393298,0.00022191,3]
[329489343,1718391066948,-500.0,0.00022191,3]
[329489344,1718391066960,-500.0,0.00022191,3]
[329489345,1718391066972,-500.0,0.00022191,3]
[329489346,1718391066988,-500.0,0.00022191,2]
[329489347,1718391067000,-500.0,0.00022191,3]
[329489348,1718391067012,-500.0,0.00022191,3]
[329489349,1718391067043,-500.0,0.00022191,3]
[329489350,1718391067056,-500.0,0.00022191,3]
[329489351,1718391067070,-500.0,0.00022191,2]
[329489352,1718391067086,-516.82,0.00022191,3]
[329489353,1718391067097,-500.0,0.00022191,3]
[329489354,1718391067108,-500.0,0.00022191,3]
[329489355,1718391067120,-862.8,0.00022191,3]
[329489356,1718391067131,-500.0,0.00022191,3]
[329489357,1718391067156,-500.0,0.00022191,3]
[329489358,1718391067180,-500.0,0.00022191,3]
[329489359,1718391067195,-500.0,0.00022191,3]
[329489360,1718391067218,-500.0,0.00022191,3]
[329489361,1718391067256,-500.0,0.00022191,3]
[329489362,1718391067270,-249.60154355,0.00022191,3]
[329489363,1718391067291,-635.00190462,0.00022191,2]
[329489365,1718391067311,-500.0,0.00022191,3]
[329489367,1718391067326,-500.0,0.00022191,3]
[329489370,1718391067350,-500.0,0.00022191,3]
[329489371,1718391067363,-500.0,0.00022191,3]
[329489372,1718391067382,-617.34,0.00022191,3]
[329489373,1718391067394,-408.28364525,0.00022191,3]
[329489374,1718391067407,-500.0,0.00022191,3]
[329489376,1718391067420,-500.0,0.00022191,3]
[329489377,1718391067432,-500.0,0.00022191,3]
[329489378,1718391067464,-500.0,0.00022191,3]
[329489379,1718391067481,-500.0,0.00022191,3]
[329489380,1718391067504,-816.94,0.00022191,3]
[329489381,1718391067521,-500.0,0.00022191,3]
[329489382,1718391067534,-500.0,0.00022191,3]
[329489383,1718391067552,-500.0,0.00022191,3]
[329489384,1718391067566,-500.0,0.00022191,3]
[329489385,1718391067582,-500.0,0.00022191,3]
[329489386,1718391067595,-830.47,0.00022191,3]
[329489387,1718391067619,-500.0,0.00022191,3]
[329489388,1718391067638,-500.0,0.00022191,3]
[329489389,1718391067651,-500.0,0.00022191,3]
[329489390,1718391067662,-573.68,0.00022191,3]
[329489391,1718391067673,-707.73,0.00022191,3]
[329489392,1718391067690,-500.0,0.00022191,3]
[329489393,1718391067709,-500.0,0.00022191,3]
[329489394,1718391067725,-500.0,0.00022191,3]
[329489395,1718391067744,-500.0,0.00022191,3]
[329489396,1718391067759,-5686.48,0.00022191,3]
[329489397,1718391067797,-28747.69,0.00022191,3]
[329489398,1718391067821,-500.0,0.00022191,3]
[329489399,1718391067838,-601.92,0.00022191,3]
[329489400,1718391067859,-500.0,0.00022191,3]
[329489401,1718391067871,-1170.48,0.00022191,3]
[329489402,1718391067883,-500.0,0.00022191,3]
[329489403,1718391067898,-1416.16,0.00022191,3]
[329489404,1718391067910,-1701.44,0.00022191,3]
[329489405,1718391067925,-500.0,0.00022191,3]
[329489406,1718391067942,-1761.3,0.00022191,3]
[329489407,1718391067960,-500.0,0.00022191,3]
[329489408,1718391067971,-500.0,0.00022191,3]
[329489409,1718391067982,-500.0,0.00022191,3]
[329489410,1718391067995,-1556.84,0.00022191,3]
[329489411,1718391068006,-8784.28,0.00022191,3]
[329489412,1718391068045,-500.0,0.00022191,3]
[329489413,1718391068079,-1000.01,0.00022191,3]
[329489414,1718391068094,-500.0,0.00022191,3]
[329489415,1718391068125,-2993.16,0.00022191,3]
[329489416,1718391068139,-1794.81,0.00022191,3]
[329489417,1718391068169,-581.37228465,0.00022191,3]
[329489418,1718391068181,-500.0,0.00022191,3]
[329489419,1718391068193,-753.41,0.00022191,3]
[329489420,1718391068205,-500.0,0.00022191,3]
[329489421,1718391068220,-500.0,0.00022191,3]
[329489422,1718391068234,-1970.6,0.00022191,3]
[329489423,1718391068252,-500.0,0.00022191,3]
[329489424,1718391068263,-1875.8,0.00022191,3]
[329489425,1718391068275,-1135.39,0.00022191,3]
[329489426,1718391068289,-500.0,0.00022191,3]
[329489427,1718391068302,-500.0,0.00022191,3]
[329489428,1718391068315,-500.0,0.00022191,3]
[329489429,1718391068329,-500.0,0.00022191,3]
[329489430,1718391068344,-1001.18,0.00022191,3]
[329489431,1718391068356,-1380.26,0.00022191,3]
[329489432,1718391068388,-3380.84,0.00022191,3]
[329489433,1718391068408,-592.03,0.00022191,3]
[329489434,1718391068423,-500.0,0.00022191,3]
[329489435,1718391068434,-500.0,0.00022191,3]
[329489436,1718391068445,-574.14,0.00022191,3]
[329489437,1718391068460,-7850.36,0.00022191,3]
[329489438,1718391068476,-1263.36,0.00022191,3]
[329489439,1718391068500,-824.94,0.00022191,3]
[329489440,1718391068513,-500.0,0.00022191,3]
[329489441,1718391068531,-500.0,0.00022191,3]
[329489442,1718391068544,-1398.36,0.00022191,3]
[329489443,1718391068557,-630.11,0.00022191,3]
[329489444,1718391068574,-5934.47,0.00022191,3]
[329489445,1718391068600,-500.0,0.00022191,3]
[329489446,1718391068612,-3522.98,0.00022191,3]
[329489447,1718391068636,-2985.25,0.00022191,3]
[329489448,1718391068649,-550.9,0.00022191,3]
[329489449,1718391068663,-880.09,0.00022191,3]
[329489450,1718391068674,-500.0,0.00022191,3]
[329489451,1718391068686,-704.19,0.00022191,3]
[329489452,1718391068700,-502.94,0.00022191,3]
[329489453,1718391068716,-3676.36,0.00022191,3]
[329489454,1718391068729,-500.0,0.00022191,3]
[329489455,1718391068742,-151.0,0.00022191,7]
[329489456,1718391068754,-1444.38,0.00022191,3]
[329489457,1718391068767,-2978.28,0.00022191,3]
[329489458,1718391068782,-29735.61,0.00022191,3]
[329489459,1718391068801,-506.37,0.00022191,3]
[329489460,1718391068821,-500.0,0.00022191,3]
[329489461,1718391068842,-500.0,0.00022191,3]
[329489462,1718391068860,-500.0,0.00022191,3]
[329489463,1718391068879,-500.0,0.00022191,3]
[329489464,1718391068896,-677.26,0.00022191,3]
[329489465,1718391068909,-500.0,0.00022191,3]
[329489466,1718391068928,-10598.1,0.00022191,3]
[329489467,1718391068941,-1055.02,0.00022191,3]
[329489468,1718391068957,-2806.41,0.00022191,3]
[329489469,1718391068972,-500.0,0.00022191,3]
[329489470,1718391068989,-500.0,0.00022191,3]
[329489471,1718391069003,-3662.28,0.00022191,3]
[329489472,1718391069028,-537.48,0.00022191,3]
[329489473,1718391069047,-500.0,0.00022191,3]
[329489474,1718391069066,-1684.13,0.00022191,3]
[329489475,1718391069096,-2671.11,0.00022191,3]
[329489476,1718391069108,-4218.2,0.00022191,3]
[329489477,1718391069121,-1667.89,0.00022191,3]
[329489478,1718391069153,-784.17,0.00022191,3]
[329489479,1718391069175,-1290.88,0.00022191,3]
[329489480,1718391069217,-758.7,0.00022191,3]
[329489481,1718391069244,-733.84,0.00022191,3]
[329489484,1718391069268,-1148.99,0.00022191,3]
[329489486,1718391069289,-492.3046021,0.00022191,3]
[329489489,1718391069328,-1732.28,0.00022191,3]
[329489491,1718391069354,-514.76,0.00022191,3]
[329489493,1718391069379,-500.0,0.00022191,3]
[329489495,1718391069391,-3449.65,0.00022191,3]
[329489496,1718391069420,-500.0,0.00022191,3]
[329489498,1718391069434,-500.0,0.00022191,3]
[329489499,1718391069447,-997.58,0.00022191,3]
[329489501,1718391069513,-500.0,0.00022191,3]
[329489503,1718391069542,-500.0,0.00022191,3]
[329489505,1718391069576,-500.0,0.00022191,3]
[329489507,1718391069630,-500.0,0.00022191,3]
[329489509,1718391069649,-568.62332223,0.00022191,3]
[329489511,1718391069662,-500.0,0.00022191,3]
[329489513,1718391069674,-1730.18,0.00022191,3]
[329489514,1718391069686,-2247.87,0.00022191,3]
[329489516,1718391069697,-500.0,0.00022191,3]
[329489519,1718391069729,-500.0,0.00022191,3]
[329489521,1718391069741,-500.0,0.00022191,3]
[329489522,1718391069757,-1843.05,0.00022191,3]
[329489524,1718391069768,-500.0,0.00022191,3]
[329489525,1718391069781,-1435.95,0.00022191,3]
[329489527,1718391069792,-500.0,0.00022191,3]
[329489529,1718391069805,-500.0,0.00022191,3]
[329489531,1718391069830,-500.0,0.00022191,3]
[329489533,1718391069844,-500.0,0.00022191,3]
[329489535,1718391069863,-23041.98,0.00022191,3]
[329489537,1718391069883,-500.0,0.00022191,3]
[329489539,1718391069908,-775.47,0.00022191,3]
[329489544,1718391070008,-500.0,0.00022191,3]
[329489546,1718391070024,-9836.95,0.00022191,3]
[329489548,1718391070037,-2112.68,0.00022191,3]
[329489550,1718391070064,-1080.33,0.00022191,3]
[329489552,1718391070077,-500.0,0.00022191,3]
[329489554,1718391070100,-877.99,0.00022191,3]
[329489555,1718391070111,-500.0,0.00022191,3]
[329489556,1718391070128,-500.0,0.00022191,3]
[329489559,1718391070154,-500.0,0.00022191,3]
[329489561,1718391070169,-943.94,0.00022191,3]
[329489563,1718391070183,-1030.33,0.00022191,3]
[329489565,1718391070194,-500.0,0.00022191,3]
[329489566,1718391070207,-1458.53,0.00022191,3]
[329489567,1718391070236,-550.6502135,0.00022191,3]
[329489568,1718391070248,-896.65,0.00022191,3]
[329489569,1718391070279,-500.0,0.00022191,3]
[329489570,1718391070292,-962.9,0.00022191,3]
[329489571,1718391070303,-707.69,0.00022191,3]
[329489572,1718391070321,-631.9,0.00022191,3]
[329489573,1718391070332,-776.36,0.00022191,3]
[329489574,1718391070344,-8903.73,0.00022191,3]
[329489575,1718391070364,-507.96,0.00022191,3]
[329489576,1718391070377,-500.0,0.00022191,3]
[329489577,1718391070390,-500.0,0.00022191,3]
[329489578,1718391070402,-500.0,0.00022191,3]
[329489579,1718391070413,-1481.84,0.00022191,3]
[329489580,1718391070439,-1510.07,0.00022191,3]
[329489581,1718391070450,-500.0,0.00022191,3]
[329489583,1718391070469,-500.0,0.00022191,3]
[329489585,1718391070482,-1196.91,0.00022191,3]
[329489586,1718391070493,-2835.88,0.00022191,3]
[329489588,1718391070509,-3592.35,0.00022191,3]
[329489590,1718391070519,-1753.97,0.00022191,3]
[329489592,1718391070531,-500.0,0.00022191,3]
[329489593,1718391070544,-6318.35,0.00022191,3]
[329489594,1718391070571,-2118.45,0.00022191,3]
[329489595,1718391070592,-500.0,0.00022191,3]
[329489596,1718391070609,-756.69,0.00022191,3]
[329489597,1718391070620,-500.0,0.00022191,3]
[329489598,1718391070630,-10351.74,0.00022191,3]
[329489599,1718391070647,-597.68,0.00022191,3]
[329489600,1718391070662,-1145.68,0.00022191,3]
[329489601,1718391070676,-778.85,0.00022191,3]
[329489602,1718391070688,-4520.85,0.00022191,3]
[329489603,1718391070699,-3747.1,0.00022191,3]
[329489604,1718391070715,-6900.79,0.00022191,3]
[329489605,1718391070731,-500.0,0.00022191,3]
[329489606,1718391070752,-500.0,0.00022191,3]
[329489608,1718391070789,-1394.79,0.00022191,3]
[329489609,1718391070807,-821.26,0.00022191,3]
[329489610,1718391070822,-1088.84,0.00022191,3]
[329489611,1718391070840,-500.0,0.00022191,3]
[329489613,1718391070862,-500.0,0.00022191,3]
[329489614,1718391070873,-4458.97,0.00022191,3]
[329489615,1718391070884,-500.0,0.00022191,3]
[329489616,1718391070895,-1772.91,0.00022191,3]
[329489617,1718391070929,-726.01,0.00022191,3]